bitfinex/quotes_BTCUSD_20250105
["timestamp","ask_amount","ask_price","bid_price","bid_amount"]
[1736102382170,0.00032347,97901.0,97900.0,0.29588732]
[1736102386268,0.00032347,97901.0,97900.0,0.32766883]
[1736102387326,0.00032347,97901.0,97900.0,0.66536117]
[1736102392586,0.00032347,97901.0,97900.0,0.68836117]
[1736102393988,0.00032347,97901.0,97900.0,0.83836117]
[1736102394821,0.00032347,97901.0,97900.0,0.83840117]
[1736102396301,0.00032347,97901.0,97900.0,1.06701135]
[1736102397749,0.00032347,97901.0,97900.0,0.83840117]
[1736102398812,0.00032347,97901.0,97900.0,0.83857197]
[1736102404678,0.00032347,97901.0,97900.0,0.81557197]
[1736102408043,0.00032347,97901.0,97900.0,0.99849358]
[1736102410522,0.00032347,97901.0,97900.0,0.81557197]
[1736102412053,0.00032347,97901.0,97900.0,0.80849197]
[1736102412261,0.00032347,97901.0,97900.0,0.65849197]
[1736102412465,0.08292347,97901.0,97900.0,0.63379046]
[1736102412784,0.08292347,97901.0,97900.0,0.52980414]
[1736102413520,0.08292347,97901.0,97900.0,0.33886314]
[1736102413722,0.08292347,97901.0,97900.0,0.34594314]
[1736102414351,0.08292347,97901.0,97900.0,0.0082508]
[1736102414562,0.08940342,97901.0,97900.0,0.0082508]
[1736102415525,0.08940342,97901.0,97900.0,0.0072508]
[1736102415728,0.09040342,97901.0,97900.0,0.0072508]
[1736102416159,0.08940342,97901.0,97900.0,0.0072508]
[1736102423160,0.08940342,97901.0,97900.0,0.0001708]
[1736102423417,0.08940342,97901.0,97900.0,0.0071708]
[1736102426236,0.08940342,97901.0,97900.0,0.0081708]
[1736102433194,0.08940342,97901.0,97900.0,0.0011708]
[1736102433503,0.08940342,97901.0,97900.0,0.0081708]
[1736102443859,0.08940342,97901.0,97900.0,0.0011708]
[1736102444051,0.08940342,97901.0,97900.0,0.0081708]
[1736102448334,0.08940342,97901.0,97900.0,0.0011708]
[1736102448540,0.08940342,97901.0,97900.0,0.0081308]
[1736102453223,0.08292347,97901.0,97900.0,0.0081308]
[1736102455334,0.08021659,97901.0,97900.0,0.0081308]
[1736102457223,0.08030199,97901.0,97900.0,0.0071308]
[1736102457636,0.08130199,97901.0,97900.0,0.0071308]
[1736102458848,0.08030199,97901.0,97900.0,0.0071308]
[1736102459189,0.08130199,97901.0,97900.0,0.0071308]
[1736102488064,0.08130199,97901.0,97900.0,0.00186017]
[1736102488493,0.08130199,97901.0,97900.0,0.190821]
[1736102491118,0.08130199,97901.0,97900.0,0.1909918]
[1736102496853,0.0010854,97901.0,97900.0,0.28801812]
[1736102497058,0.0010854,97901.0,97900.0,0.29497812]
[1736102497261,0.0010854,97901.0,97900.0,0.32683673]
[1736102497466,0.0010854,97901.0,97900.0,0.29497812]
[1736102498029,0.0010854,97901.0,97900.0,0.84867594]
[1736102498664,0.0010854,97901.0,97900.0,0.81682611]
[1736102499328,0.0010854,97901.0,97900.0,0.63368832]
[1736102500343,8.54e-05,97901.0,97900.0,0.63368832]
[1736102500550,8.54e-05,97901.0,97900.0,0.345841]
[1736102500730,0.0010854,97901.0,97900.0,0.345841]
[1736102501106,8.54e-05,97901.0,97900.0,0.345841]
[1736102501336,8.54e-05,97901.0,97900.0,0.346841]
[1736102501541,8.54e-05,97901.0,97900.0,0.0081308]
[1736102502514,8.54e-05,97901.0,97900.0,0.0071308]
[1736102502688,8.54e-05,97901.0,97900.0,0.0988605]
[1736102510385,8.54e-05,97901.0,97900.0,0.0071308]
[1736102522913,8.54e-05,97901.0,97900.0,0.09883483]
[1736102524198,8.54e-05,97901.0,97900.0,0.0071308]
[1736102545116,8.54e-05,97901.0,97900.0,0.01714747]
[1736102545466,8.54e-05,97901.0,97900.0,0.0071308]
[1736102547179,8.54e-05,97901.0,97900.0,0.14472152]
[1736102553603,8.54e-05,97901.0,97900.0,0.24870784]
[1736102554230,8.54e-05,97901.0,97900.0,0.2805566]
[1736102554593,8.54e-05,97901.0,97900.0,0.28055311]
[1736102554732,8.54e-05,97901.0,97900.0,0.58735375]
[1736102555754,8.54e-05,97901.0,97900.0,0.44976303]
[1736102557059,8.54e-05,97901.0,97900.0,0.11111712]
[1736102558199,8.54e-05,97901.0,97900.0,0.63316636]
[1736102562043,8.54e-05,97901.0,97900.0,0.44976303]
[1736102563405,8.54e-05,97901.0,97900.0,0.11111712]
[1736102564676,8.54e-05,97901.0,97900.0,0.63312252]
[1736102578037,8.54e-05,97901.0,97900.0,0.44976303]
[1736102578290,8.54e-05,97901.0,97900.0,0.45076303]
[1736102582040,8.54e-05,97901.0,97900.0,0.63412252]
[1736102583453,8.54e-05,97901.0,97900.0,0.66595944]
[1736102588380,8.54e-05,97901.0,97900.0,0.63412252]
[1736102588625,0.0759854,97901.0,97900.0,0.63412252]
[1736102589388,0.0759854,97901.0,97900.0,0.20380809]
[1736102590980,0.0759854,97901.0,97900.0,0.09286177]
[1736102591187,0.0759854,97901.0,97900.0,0.09982177]
[1736102591979,0.0759854,97901.0,97900.0,0.09882177]
[1736102592197,0.0759854,97901.0,97900.0,0.0071308]
[1736102593290,0.0759854,97901.0,97900.0,0.0081308]
[1736102593904,0.0759854,97901.0,97900.0,0.0071308]
[1736102595513,0.1223854,97901.0,97900.0,0.0071308]
[1736102595938,0.12886081,97901.0,97900.0,0.0071308]
[1736102600987,0.08246081,97901.0,97900.0,0.0071308]
[1736102601407,0.0759854,97901.0,97900.0,0.0071308]
[1736102602655,0.0769854,97901.0,97900.0,0.0071308]
[1736102603399,0.0759854,97901.0,97900.0,0.0071308]
[1736102603612,0.0769854,97901.0,97900.0,0.0071308]
[1736102604045,0.0759854,97901.0,97900.0,0.0071308]
[1736102605763,0.0769854,97901.0,97900.0,0.0071308]
[1736102605980,0.0759854,97901.0,97900.0,0.0071308]
[1736102608907,0.0759854,97901.0,97900.0,0.09882177]
[1736102610026,0.0759854,97901.0,97900.0,0.0071308]
[1736102614753,0.0759854,97901.0,97900.0,0.09882177]
[1736102616184,0.0759854,97901.0,97900.0,0.0071308]
[1736102622643,0.0759854,97901.0,97900.0,0.09882177]
[1736102624430,0.0759854,97901.0,97900.0,0.09186177]
[1736102624658,0.0759854,97901.0,97900.0,0.09882177]
[1736102626524,0.0759854,97901.0,97900.0,0.0071308]
[1736102629094,0.0759854,97901.0,97900.0,0.09883965]
[1736102630216,0.0759854,97901.0,97900.0,0.0071308]
[1736102632969,0.1247854,97901.0,97900.0,0.0001708]
[1736102633182,0.13125996,97901.0,97900.0,0.0071308]
[1736102634739,0.13225996,97901.0,97900.0,0.0071308]
[1736102635164,0.1257854,97901.0,97900.0,0.0071308]
[1736102635394,0.13225822,97901.0,97900.0,0.0001708]
[1736102635600,0.13225822,97901.0,97900.0,0.0071308]
[1736102639249,0.08345822,97901.0,97900.0,0.0071308]
[1736102667006,0.00755822,97901.0,97900.0,0.0071308]
[1736102667262,0.0798,97904.0,97900.0,0.0071308]
[1736102667482,0.0799462,97904.0,97900.0,0.0071308]
[1736102667611,0.00594464,97903.0,97900.0,0.0071308]
[1736102669263,0.00694464,97903.0,97900.0,0.0071308]
[1736102677134,0.00703004,97903.0,97901.0,0.00696]
[1736102678306,0.00603004,97903.0,97901.0,0.00696]
[1736102678742,0.00703004,97903.0,97901.0,0.00696]
[1736102681864,0.00703004,97903.0,97902.0,0.00696]
[1736102682811,0.00603004,97903.0,97902.0,0.00696]
[1736102683242,0.00703004,97903.0,97902.0,0.00696]
[1736102709799,0.0799462,97904.0,97902.0,0.00696]
[1736102711583,0.0001462,97904.0,97902.0,0.190815]
[1736102711800,0.0011462,97904.0,97902.0,0.190815]
[1736102713202,0.0011462,97904.0,97903.0,0.0918274]
[1736102714059,0.0001462,97904.0,97903.0,0.0918274]
[1736102714562,0.0001462,97904.0,97902.0,0.21097609]
[1736102716972,0.0001462,97904.0,97902.0,0.190815]
[1736102721448,0.0001462,97904.0,97902.0,0.183855]
[1736102721659,0.0001462,97904.0,97903.0,0.00696]
[1736102723484,0.0001462,97904.0,97903.0,0.11094632]
[1736102724359,0.0002316,97904.0,97903.0,0.11094632]
[1736102726476,0.0002316,97904.0,97903.0,0.20260472]
[1736102727425,0.0002316,97904.0,97903.0,0.24790472]
[1736102728639,0.0002316,97904.0,97903.0,0.45244073]
[1736102728857,0.0002316,97904.0,97903.0,0.79068223]
[1736102729053,0.0002316,97904.0,97903.0,0.89068223]
[1736102730234,0.0002316,97904.0,97903.0,0.89168223]
[1736102730655,0.0002316,97904.0,97903.0,0.89068223]
[1736102731888,0.0004,97919.0,97904.0,0.273]
[1736102732095,0.0004,97919.0,97914.0,0.258934]
[1736102732318,0.0004,97919.0,97914.0,0.36292032]
[1736102733670,0.0004,97919.0,97914.0,0.41012032]
[1736102733792,0.0004,97919.0,97914.0,0.41112032]
[1736102734576,0.00013471,97915.0,97914.0,0.43412032]
[1736102734730,0.00013471,97915.0,97914.0,0.61586774]
[1736102734933,0.00013471,97915.0,97914.0,0.71586774]
[1736102735140,0.00013471,97915.0,97914.0,0.71486774]
[1736102735345,0.00013471,97915.0,97914.0,0.85210872]
[1736102735529,0.00013471,97915.0,97914.0,0.85310872]
[1736102736127,0.00013471,97915.0,97914.0,0.85210872]
[1736102736573,0.00013471,97915.0,97914.0,1.06232799]
[1736102736881,0.00013471,97915.0,97914.0,1.06732799]
[1736102740186,0.00013471,97915.0,97914.0,1.08767643]
[1736102745073,0.00013471,97915.0,97914.0,1.27011508]
[1736102745212,0.00013471,97915.0,97914.0,1.27420208]
[1736102747603,0.00013471,97915.0,97914.0,1.09176343]
[1736102747984,8.54e-05,97925.0,97917.0,0.1]
[1736102748182,0.00013471,97925.0,97924.0,0.31080232]
[1736102748337,0.00013471,97925.0,97924.0,0.31772232]
[1736102748564,0.00013471,97925.0,97924.0,0.28780232]
[1736102748766,0.07543471,97925.0,97924.0,0.29472232]
[1736102749607,0.07543471,97925.0,97924.0,0.28880232]
[1736102749778,0.07543471,97925.0,97924.0,0.29572232]
[1736102752469,0.07543471,97925.0,97924.0,0.29472232]
[1736102753568,0.07543471,97925.0,97924.0,0.29572232]
[1736102757116,0.00013471,97925.0,97924.0,0.29572232]
[1736102760353,0.00013471,97925.0,97924.0,0.30592388]
[1736102762624,0.00013471,97925.0,97924.0,0.3377061]
[1736102768966,0.00013471,97925.0,97924.0,0.42893481]
[1736102769868,0.00013471,97925.0,97924.0,0.3377061]
[1736102771154,0.00013471,97925.0,97924.0,0.47454917]
[1736102772644,0.00013471,97925.0,97924.0,0.67546901]
[1736102775135,0.00013471,97925.0,97924.0,0.90357451]
[1736102776368,0.00013471,97925.0,97924.0,0.67546901]
[1736102785170,0.0803,97937.0,97932.0,0.183801]
[1736102785532,0.00521717,97933.0,97932.0,0.28778732]
[1736102785852,8.54e-05,97933.0,97932.0,0.28778732]
[1736102786406,0.0803854,97933.0,97932.0,0.28778732]
[1736102786642,0.0803854,97933.0,97932.0,0.62555023]
[1736102787700,0.0803854,97933.0,97932.0,0.63247023]
[1736102787928,0.0803854,97933.0,97932.0,0.76992402]
[1736102789239,0.0803854,97933.0,97932.0,0.63247023]
[1736102790178,0.0803854,97933.0,97932.0,0.29470732]
[1736102796180,8.54e-05,97933.0,97932.0,0.29470732]
[1736102796385,8.54e-05,97933.0,97932.0,0.32653806]
[1736102798111,0.0680854,97939.0,97932.0,0.66477458]
[1736102798284,0.0468,97950.0,97946.0,0.183773]
[1736102798450,0.0469209,97950.0,97947.0,0.10398632]
[1736102798653,0.0051335,97949.0,97947.0,0.10398632]
[1736102798865,0.0469209,97950.0,97947.0,0.10398632]
[1736102799134,0.0469209,97950.0,97948.0,0.18377]
[1736102799370,0.0051335,97949.0,97948.0,0.18377]
[1736102799590,0.0469209,97950.0,97948.0,0.18377]
[1736102801161,0.076,97949.0,97948.0,0.18377]
[1736102801362,0.076,97949.0,97948.0,0.28775632]
[1736102801573,0.08113355,97949.0,97948.0,0.28775632]
[1736102801796,0.076,97949.0,97948.0,0.28775632]
[1736102806505,0.076,97949.0,97948.0,0.31540576]
[1736102810817,0.0001209,97950.0,97948.0,0.31540576]
[1736102811187,0.0001209,97950.0,97949.0,0.10398632]
[1736102811701,0.0052545,97950.0,97949.0,0.10398632]
[1736102812046,0.0001209,97950.0,97949.0,0.10398632]
[1736102812202,0.00525728,97950.0,97949.0,0.10398632]
[1736102812490,0.0001209,97950.0,97949.0,0.10398632]
[1736102812757,0.00525728,97950.0,97949.0,0.10398632]
[1736102814188,0.0001209,97950.0,97949.0,0.10398632]
[1736102814823,0.0001209,97950.0,97949.0,0.10498632]
[1736102818540,0.0472,97959.0,97949.0,0.10498632]
[1736102819732,0.0472,97959.0,97954.0,0.183757]
[1736102819937,0.0472,97959.0,97955.0,0.10398632]
[1736102820317,0.05397881,97956.0,97955.0,0.10398632]
[1736102820501,0.05,97956.0,97955.0,0.10398632]
[1736102823477,0.1325,97956.0,97955.0,0.10398632]
[1736102823686,0.07492984,97955.0,97948.0,0.02072944]
[1736102823893,0.0493,97954.0,97949.0,0.00692]
[1736102824308,0.00398119,97953.0,97949.0,0.00692]
[1736102824526,0.00398119,97953.0,97950.0,0.00692]
[1736102824758,0.0493,97952.0,97950.0,0.00692]
[1736102824935,0.183765,97951.0,97950.0,0.00692]
[1736102825595,0.18774618,97951.0,97950.0,0.00692]
[1736102826638,0.27024618,97951.0,97950.0,0.00692]
[1736102827319,0.27224618,97951.0,97950.0,0.00692]
[1736102827938,0.27324618,97951.0,97950.0,0.00692]
[1736102829134,0.08948118,97951.0,97950.0,0.00692]
[1736102838128,0.183782,97943.0,97939.0,0.0001708]
[1736102838346,0.0829,97941.0,97939.0,0.0002917]
[1736102838566,0.183784,97941.0,97939.0,0.0002917]
[1736102838788,0.08687251,97940.0,97939.0,0.0002917]
[1736102840444,0.08787251,97940.0,97939.0,0.0002917]
[1736102840757,0.09187251,97940.0,97939.0,0.0012917]
[1736102842159,0.09087251,97940.0,97939.0,0.0012917]
[1736102842494,0.09387251,97940.0,97939.0,0.0012917]
[1736102842892,0.08987251,97940.0,97939.0,0.0002917]
[1736102843228,0.09387251,97940.0,97939.0,0.0012917]
[1736102844918,0.09087251,97940.0,97939.0,0.0012917]
[1736102845321,0.09287251,97940.0,97939.0,0.0012917]
[1736102846076,0.08887251,97940.0,97939.0,0.0002917]
[1736102846279,0.09287251,97940.0,97939.0,0.0012917]
[1736102854707,0.29685883,97940.0,97939.0,0.0012917]
[1736102862497,0.29685883,97940.0,97939.0,0.0002917]
[1736102862698,0.29285883,97940.0,97939.0,0.0002917]
[1736102862917,0.29485883,97940.0,97939.0,0.0012917]
[1736102863315,0.29685883,97940.0,97939.0,0.0012917]
[1736102863515,0.3875587,97940.0,97939.0,0.0012917]
[1736102876890,0.3046587,97940.0,97924.0,0.00311372]
[1736102877100,0.183808,97928.0,97924.0,0.00311372]
[1736102877501,0.00395631,97927.0,97924.0,0.00311372]
[1736102878898,0.00395631,97927.0,97924.0,0.00411372]
[1736102879085,0.00395631,97927.0,97924.0,0.001]
[1736102879309,0.00395631,97927.0,97914.0,0.0001708]
[1736102879491,0.00395631,97927.0,97916.0,0.00692]
[1736102879492,0.183821,97922.0,97916.0,0.00692]
[1736102879827,0.00395629,97921.0,97916.0,0.00692]
[1736102880232,0.00395629,97921.0,97915.0,0.00692]
[1736102880546,0.00395629,97921.0,97914.0,0.0001708]
[1736102880793,0.00395629,97921.0,97915.0,0.00692]
[1736102882478,0.00595629,97921.0,97915.0,0.00692]
[1736102882655,0.00995629,97921.0,97915.0,0.00692]
[1736102886772,0.006,97921.0,97915.0,0.00692]
[1736102887629,0.004,97921.0,97915.0,0.00692]
[1736102887829,0.183809,97928.0,97915.0,0.00692]
[1736102888053,0.006,97921.0,97915.0,0.00692]
[1736102888289,0.006,97921.0,97917.0,0.183827]
[1736102888675,0.004,97921.0,97917.0,0.183827]
[1736102888874,0.009,97921.0,97917.0,0.183827]
[1736102889790,0.009,97921.0,97920.0,0.18635712]
[1736102890009,0.009,97921.0,97920.0,0.19327712]
[1736102890819,0.007,97921.0,97920.0,0.19327712]
[1736102891232,0.009,97921.0,97920.0,0.11107712]
[1736102891409,0.002,97921.0,97920.0,0.11107712]
[1736102892019,0.005,97921.0,97920.0,0.11107712]
[1736102892222,0.005,97921.0,97920.0,0.0070908]
[1736102893291,0.00895093,97921.0,97920.0,0.0070908]
[1736102893697,0.00595093,97921.0,97920.0,0.0070908]
[1736102894117,0.00395093,97921.0,97920.0,0.0070908]
[1736102894557,0.367636,97923.0,97920.0,0.0070908]
[1736102894755,0.00595091,97921.0,97920.0,0.0070908]
[1736102894961,0.002,97921.0,97920.0,0.0070908]
[1736102895116,0.00395091,97921.0,97920.0,0.0070908]
[1736102895316,0.003,97921.0,97920.0,0.0070908]
[1736102895517,0.005,97921.0,97920.0,0.0070908]
[1736102895731,0.00595091,97921.0,97920.0,0.0001708]
[1736102895925,0.00895091,97921.0,97920.0,0.0001708]
[1736102896836,0.08395091,97921.0,97920.0,0.0001708]
[1736102906666,0.00895091,97921.0,97920.0,0.0001708]
[1736102916889,0.18751427,97921.0,97920.0,0.0001708]
[1736102917491,0.39150059,97921.0,97920.0,0.0001708]
[1736102919297,0.29393723,97921.0,97920.0,0.0001708]
[1736102928355,0.29193723,97921.0,97920.0,0.0001708]
[1736102928781,0.39094367,97921.0,97920.0,0.0011708]
[1736102928978,0.38394367,97921.0,97920.0,0.0001708]
[1736102929185,0.38094367,97921.0,97920.0,0.0001708]
[1736102929404,0.39094367,97921.0,97920.0,0.0011708]
[1736102930192,0.29893723,97921.0,97920.0,0.0011708]
[1736102931603,0.09495091,97921.0,97920.0,0.0011708]
[1736102931813,0.01395091,97921.0,97920.0,0.0011708]
[1736102943175,0.10595735,97921.0,97920.0,0.0011708]
[1736102953850,0.01395091,97921.0,97920.0,0.0011708]
[1736102954976,0.10595735,97921.0,97920.0,0.0011708]
[1736102955811,0.18685735,97921.0,97920.0,0.0011708]
[1736102956229,0.09485091,97921.0,97920.0,0.0011708]
[1736102957683,0.2788638,97921.0,97920.0,0.0011708]
[1736102958649,0.09485091,97921.0,97920.0,0.0011708]
[1736102972831,0.15186756,97921.0,97920.0,0.0011708]
[1736102974158,0.01395091,97921.0,97920.0,0.0011708]
[1736103012136,0.01,97921.0,97920.0,0.0011708]
[1736103014528,0.01,97921.0,97920.0,0.10515712]
[1736103014732,0.01,97921.0,97920.0,0.18025712]
[1736103015148,0.007,97921.0,97920.0,0.18025712]
[1736103015791,0.003,97921.0,97920.0,0.17925712]
[1736103016122,8.54e-05,97924.0,97921.0,0.183821]
[1736103016327,8.54e-05,97924.0,97921.0,0.28780732]
[1736103017969,8.54e-05,97924.0,97921.0,0.28880732]
[1736103018677,8.54e-05,97924.0,97921.0,0.28780732]
[1736103018883,0.0010854,97924.0,97921.0,0.28780732]
[1736103019131,0.0010854,97924.0,97921.0,0.28880732]
[1736103019304,8.54e-05,97924.0,97921.0,0.28880732]
[1736103020318,8.54e-05,97924.0,97921.0,0.28780732]
[1736103020709,8.54e-05,97924.0,97921.0,0.28880732]
[1736103020921,8.54e-05,97924.0,97921.0,0.28780732]
[1736103021349,8.54e-05,97924.0,97921.0,0.28880732]
[1736103024072,8.54e-05,97924.0,97921.0,0.28897812]
[1736103027551,8.54e-05,97924.0,97921.0,0.10515712]
[1736103033135,8.54e-05,97924.0,97922.0,0.00692]
[1736103034340,8.54e-05,97924.0,97922.0,0.00792]
[1736103044186,8.54e-05,97924.0,97922.0,0.001]
[1736103044363,8.54e-05,97924.0,97923.0,0.00692]
[1736103051113,8.54e-05,97924.0,97921.0,0.0001708]
[1736103051334,0.078,97923.0,97921.0,0.0001708]
[1736103051540,0.261819,97922.0,97921.0,0.0070908]
[1736103051755,0.26576887,97922.0,97921.0,0.0070908]
[1736103051932,0.31166887,97922.0,97921.0,0.0070908]
[1736103053134,0.31266887,97922.0,97921.0,0.0070908]
[1736103054127,0.31566887,97922.0,97921.0,0.0070908]
[1736103054376,0.31266887,97922.0,97921.0,0.0070908]
[1736103054715,0.31166887,97922.0,97921.0,0.0070908]
[1736103054908,0.31466887,97922.0,97921.0,0.0070908]
[1736103055116,0.31566887,97922.0,97921.0,0.0070908]
[1736103055451,0.31466887,97922.0,97921.0,0.0070908]
[1736103055647,0.13084987,97922.0,97921.0,0.0070908]
[1736103055855,0.13184987,97922.0,97921.0,0.0070908]
[1736103059962,0.12884987,97922.0,97921.0,0.0070908]
[1736103060423,0.13184987,97922.0,97921.0,0.0070908]
[1736103060784,0.13084987,97922.0,97921.0,0.0070908]
[1736103060983,0.13184987,97922.0,97921.0,0.0070908]
[1736103061660,0.00794987,97922.0,97921.0,0.0070908]
[1736103063114,0.00494987,97922.0,97921.0,0.0070908]
[1736103063556,0.00694987,97922.0,97921.0,0.0070908]
[1736103063750,0.001,97922.0,97921.0,0.0070908]
[1736103064157,0.003,97922.0,97921.0,0.0070908]
[1736103064338,8.54e-05,97924.0,97922.0,0.183819]
[1736103064814,0.00378155,97923.0,97922.0,0.183819]
[1736103068481,0.00378155,97923.0,97922.0,0.190739]
[1736103073095,0.00378155,97923.0,97922.0,0.191739]
[1736103086248,0.00378155,97923.0,97922.0,0.1919098]
[1736103088759,8.54e-05,97924.0,97922.0,0.1919098]
[1736103090021,8.54e-05,97924.0,97922.0,0.1909098]
[1736103090565,8.54e-05,97924.0,97922.0,0.1919098]
[1736103091493,8.54e-05,97924.0,97923.0,0.00692]
[1736103092979,8.54e-05,97924.0,97923.0,0.00792]
[1736103097357,0.00386525,97924.0,97923.0,0.00792]
[1736103097560,8.54e-05,97924.0,97923.0,0.00792]
[1736103109047,8.54e-05,97924.0,97923.0,0.11190632]
[1736103111072,8.54e-05,97924.0,97923.0,0.28103114]
[1736103111427,8.54e-05,97924.0,97923.0,0.24928172]
[1736103111843,8.54e-05,97924.0,97923.0,0.24945252]
[1736103112027,8.54e-05,97924.0,97923.0,0.28119782]
[1736103112235,8.54e-05,97924.0,97923.0,0.66447604]
[1736103112406,8.54e-05,97924.0,97923.0,0.63273074]
[1736103113170,8.54e-05,97924.0,97923.0,0.29524432]
[1736103114153,8.54e-05,97924.0,97923.0,0.44956354]
[1736103118861,8.54e-05,97924.0,97923.0,0.58663896]
[1736103120141,8.54e-05,97924.0,97923.0,0.24915254]
[1736103123960,8.54e-05,97924.0,97923.0,0.11207712]
[1736103126826,8.54e-05,97924.0,97923.0,0.11309813]
[1736103127914,8.54e-05,97924.0,97923.0,0.14483646]
[1736103128719,8.54e-05,97924.0,97923.0,0.48214692]
[1736103128928,8.54e-05,97924.0,97923.0,0.48112591]
[1736103129505,8.54e-05,97924.0,97923.0,0.47420591]
[1736103129709,8.54e-05,97924.0,97923.0,0.48112591]
[1736103129917,8.54e-05,97924.0,97923.0,0.44938758]
[1736103130998,8.54e-05,97924.0,97923.0,0.11207712]
[1736103131191,8.54e-05,97924.0,97923.0,0.1438166]
[1736103132123,8.54e-05,97924.0,97923.0,0.11207712]
[1736103133165,8.54e-05,97924.0,97923.0,0.58651857]
[1736103134446,8.54e-05,97924.0,97923.0,0.24917731]
[1736103134584,8.54e-05,97924.0,97923.0,0.11207712]
[1736103141356,8.54e-05,97924.0,97923.0,0.24917731]
[1736103142639,8.54e-05,97924.0,97923.0,0.61848283]
[1736103145201,8.54e-05,97924.0,97923.0,0.48138264]
[1736103152646,8.54e-05,97924.0,97923.0,0.44961384]
[1736103153053,8.54e-05,97924.0,97923.0,0.48139228]
[1736103153972,8.54e-05,97924.0,97923.0,0.44961384]
[1736103154371,8.54e-05,97924.0,97923.0,0.66456054]
[1736103154800,8.54e-05,97924.0,97923.0,0.63278104]
[1736103155016,0.0755854,97924.0,97923.0,0.62586104]
[1736103155430,0.1225854,97924.0,97923.0,0.63278104]
[1736103156507,0.1225854,97924.0,97923.0,0.11207712]
[1736103158153,0.1225854,97924.0,97923.0,0.0011708]
[1736103158362,0.1225854,97924.0,97923.0,0.0080908]
[1736103158784,0.12637728,97924.0,97923.0,0.0080908]
[1736103159193,0.12637728,97924.0,97923.0,0.0070908]
[1736103159403,0.12737728,97924.0,97923.0,0.0070908]
[1736103159608,0.12837728,97924.0,97923.0,0.0070908]
[1736103160783,0.12637728,97924.0,97923.0,0.0070908]
[1736103161145,0.12837728,97924.0,97923.0,0.0070908]
[1736103163841,0.12737728,97924.0,97923.0,0.0070908]
[1736103163990,0.12637728,97924.0,97923.0,0.0070908]
[1736103164200,0.12837728,97924.0,97923.0,0.0070908]
[1736103164410,0.12737728,97924.0,97923.0,0.0070908]
[1736103164619,0.12637728,97924.0,97923.0,0.0070908]
[1736103165026,0.12837728,97924.0,97923.0,0.0070908]
[1736103180059,0.12737728,97924.0,97923.0,0.0070908]
[1736103180238,0.12837728,97924.0,97923.0,0.0070908]
[1736103180437,0.12737728,97924.0,97923.0,0.0070908]
[1736103180940,0.12637728,97924.0,97923.0,0.0070908]
[1736103181324,0.12737728,97924.0,97923.0,0.0070908]
[1736103181933,0.12637728,97924.0,97923.0,0.0070908]
[1736103185110,0.00387728,97924.0,97923.0,0.1909078]
[1736103185520,8.54e-05,97924.0,97923.0,0.1909078]
[1736103188724,8.54e-05,97924.0,97923.0,0.0070908]
[1736103192336,8.54e-05,97924.0,97923.0,0.1909078]
[1736103200236,8.54e-05,97924.0,97923.0,0.1929078]
[1736103202751,8.54e-05,97924.0,97923.0,0.1909078]
[1736103202946,8.54e-05,97924.0,97923.0,0.1929078]
[1736103208740,8.54e-05,97924.0,97923.0,0.29689412]
[1736103226543,8.54e-05,97924.0,97923.0,0.11307712]
[1736103231606,0.0715854,97931.0,97923.0,0.11307712]
[1736103231818,0.0715854,97931.0,97924.0,0.10398632]
[1736103232619,0.0715854,97931.0,97925.0,0.00692]
[1736103232820,0.0715854,97931.0,97926.0,0.10398632]
[1736103233289,0.0725854,97931.0,97926.0,0.10398632]
[1736103233897,0.0735854,97931.0,97926.0,0.10398632]
[1736103234403,0.0725854,97931.0,97926.0,0.10398632]
[1736103235006,0.0735854,97931.0,97926.0,0.10398632]
[1736103236874,0.00363664,97930.0,97926.0,0.10398632]
[1736103237386,0.00363664,97930.0,97927.0,0.00692]
[1736103237535,0.00363664,97930.0,97927.0,0.11090632]
[1736103237950,0.00463664,97930.0,97927.0,0.11090632]
[1736103238172,0.00563664,97930.0,97927.0,0.11090632]
[1736103238390,0.00463664,97930.0,97927.0,0.11090632]
[1736103238621,0.51521664,97930.0,97929.0,0.02035227]
[1736103238998,0.51621664,97930.0,97929.0,0.02035227]
[1736103239354,0.51521664,97930.0,97929.0,0.02035227]
[1736103239851,0.51621664,97930.0,97929.0,0.02035227]
[1736103240581,0.51521664,97930.0,97929.0,0.02035227]
[1736103240809,0.51621664,97930.0,97929.0,0.02035227]
[1736103242152,0.51621664,97930.0,97929.0,0.02727227]
[1736103249874,0.51621664,97930.0,97929.0,0.00692]
[1736103250106,0.259106,97929.0,97923.0,0.0001708]
[1736103250314,0.0753,97927.0,97924.0,0.00692]
[1736103250530,0.58588,97927.0,97924.0,0.00692]
[1736103250735,0.00363617,97926.0,97924.0,0.00692]
[1736103251337,0.51421617,97926.0,97924.0,0.00692]
[1736103251974,0.51421617,97926.0,97924.0,0.00792]
[1736103252189,0.0753,97925.0,97924.0,0.00692]
[1736103252422,0.58588,97925.0,97924.0,0.00692]
[1736103252618,0.58951617,97925.0,97924.0,0.00692]
[1736103253250,0.58951617,97925.0,97923.0,0.0001708]
[1736103253449,0.58951617,97925.0,97924.0,0.00692]
[1736103254610,0.51421617,97925.0,97924.0,0.00692]
[1736103254802,0.59711617,97925.0,97924.0,0.00692]
[1736103255225,0.59711617,97925.0,97923.0,0.0001708]
[1736103255430,0.59711617,97925.0,97924.0,0.00692]
[1736103255871,0.59911617,97925.0,97924.0,0.00692]
[1736103256370,0.59711617,97925.0,97924.0,0.00692]
[1736103256785,0.59911617,97925.0,97924.0,0.00692]
[1736103256985,0.59611617,97925.0,97924.0,0.00692]
[1736103257361,0.59711617,97925.0,97924.0,0.00692]
[1736103257573,0.59611617,97925.0,97924.0,0.00692]
[1736103257964,0.59911617,97925.0,97924.0,0.00692]
[1736103258756,0.59611617,97925.0,97924.0,0.00692]
[1736103258962,0.59411617,97925.0,97924.0,0.00692]
[1736103259194,0.59611617,97925.0,97924.0,0.00692]
[1736103259725,0.59411617,97925.0,97924.0,0.00692]
[1736103260144,0.51621617,97925.0,97924.0,0.11090632]
[1736103260353,0.51921617,97925.0,97924.0,0.11090632]
[1736103260785,0.51621617,97925.0,97924.0,0.29472232]
[1736103260992,0.51921617,97925.0,97924.0,0.29472232]
[1736103261673,0.52221617,97925.0,97924.0,0.29472232]
[1736103262547,0.52021617,97925.0,97924.0,0.29472232]
[1736103262747,0.52121617,97925.0,97924.0,0.29472232]
[1736103263250,0.52021617,97925.0,97924.0,0.29472232]
[1736103263892,0.51521617,97925.0,97924.0,0.29489312]
[1736103264103,0.51821617,97925.0,97924.0,0.29489312]
[1736103264320,0.51721617,97925.0,97924.0,0.29489312]
[1736103264892,0.51921617,97925.0,97924.0,0.29489312]
[1736103265921,0.52021617,97925.0,97924.0,0.29489312]
[1736103267031,0.51421617,97925.0,97924.0,0.29489312]
[1736103267236,0.51521617,97925.0,97924.0,0.29489312]
[1736103267444,0.51621617,97925.0,97924.0,0.29489312]
[1736103267670,0.51421617,97925.0,97924.0,0.29489312]
[1736103267879,0.51421617,97925.0,97924.0,0.29589312]
[1736103268720,0.51421617,97925.0,97924.0,0.29489312]
[1736103269505,0.51421617,97925.0,97924.0,0.32674322]
[1736103270332,0.51421617,97925.0,97924.0,0.32774322]
[1736103270942,0.51421617,97925.0,97924.0,0.32674322]